Cogmind - Beta 13 @@@ ROGUE MODE // 2024.04.17 @ 17:26:19 Player: Fazzonamite Result: Destroyed by G-34 Mercenary with Small Laser Performance ------------- Evolutions (1) 500 Regions Visited (3) 600 Robots Destroyed (7) 35 Value Destroyed (256) 256 Prototype IDs (0) 0 Alien Tech Used (0) 0 Bonus (200) 200 TOTAL SCORE: 1591 Bonus ------- Pacifist 200 Cogmind --------- Core Integrity 0/400 Matter 150/300 Energy 100/100 System Corruption 1% Temperature Cool (15) Movement Core (100) Ox1 Location -9/Storage Parts ------- > --- POWER (1) -------- (None) > --- PROPULSION (2) --- (None) > --- UTILITY (4) ------ Small Storage Unit Power Shielding > --- WEAPON (2) ------- (None) > --- INVENTORY (8) ---- Ion Engine Light Ion Engine Heat Sink Weight Redist. System Structural Scanner Propulsion Shielding Heavy Assault Rifle Peak State ------------ > --- POWER ------------ Ion Engine > --- PROPULSION ------- Improved Treads Improved Treads > --- UTILITY ---------- Small Storage Unit Power Shielding Light Armor Plating Drone Bay > --- WEAPON ----------- Minigun Minigun > --- INVENTORY -------- Ion Engine Light Ion Engine Heat Sink Weight Redist. System Structural Scanner Propulsion Shielding Heavy Assault Rifle Grenade Launcher [Rating: 20] Favorites ----------- Power Ion Engine Engine Ion Engine Propulsion Improved Treads Treads Improved Treads Wheel Wheel Utility Small Storage Unit Device Drone Bay Storage Small Storage Unit Protection Light Armor Plating Weapon Minigun Energy Gun Small Laser Ballistic Gun Minigun Launcher Grenade Launcher Build | -11 -10 -9 -9 ------- Run | Yrd Mat Mat Sto Slots Evolved 2 | . . 2 . Power . | . . . . Propulsion . | . . . . Utility 2 | . . 2 . Weapon . | . . . . Parts Attached 15 | 6 1 5 3 Power 1 | 1 . . . Engine 1 | 1 . . . Core . | . . . . Reactor . | . . . . Propulsion 4 | 2 . 2 . Treads 2 | . . 2 . Leg . | . . . . Wheel 2 | 2 . . . Hover . | . . . . Flight . | . . . . Utility 5 | 1 1 1 2 Device 1 | . . . 1 Storage 1 | 1 . . . Processor . | . . . . Hackware . | . . . . Protection 3 | . 1 1 1 Artifact . | . . . . Weapon 5 | 2 . 2 1 Energy Gun 2 | 2 . . . Energy Cannon . | . . . . Ballistic Gun 2 | . . 2 . Ballistic Cannon . | . . . . Launcher 1 | . . . 1 Special Weapon . | . . . . Impact Weapon . | . . . . Slashing Weapon . | . . . . Piercing Weapon . | . . . . Special Melee Weapon . | . . . . Unidentified Prototypes . | . . . . Parts Lost 5 | . . . 5 Power 1 | . . . 1 Propulsion 1 | . . . 1 Utility 1 | . . . 1 Weapon 2 | . . . 2 Highest Loss Streak 4 | . . . 4 To Critical Strikes . | . . . . Average Slot Usage (%) 86 | . 93 78 86 Engine 10 | . 14 11 9 Treads 13 | . . 14 17 Wheel 6 | . 28 7 . Device 2 | . . . 3 Storage 11 | . 14 11 11 Protection 20 | . 7 18 24 Energy Gun 5 | . 28 1 . Ballistic Gun 14 | . . 14 19 Naked Turns . | . . . . Heaviest Build 26 | 12 15 20 26 Greatest Support 46 | 26 26 46 46 Greatest Overweight (x) 3 | . . . 3 Average Overweight (x) . | . . . . Largest Inventory Capacity 8 | 8 8 8 8 Average Capacity 7 | 6 8 8 8 Most Carried 8 | 5 4 8 8 Average Carried 5 | 1 2 4 7 Final Capacity 8 | 8 8 8 8 Final Carried 8 | 1 3 8 7 Class Distribution -------------------- 100% | Mutant Dominant Class ---------------- Mutant | -10/Materials Mutant | -9/Materials Mutant | -9/Storage Resources | -11 -10 -9 -9 ----------- Run | Yrd Mat Mat Sto Matter Collected 325 | 175 . 139 11 Remotely . | . . . . Salvage Created 261 | . . 139 122 Parts 13 | . . 7 6 Haulers Intercepted . | . . . . Recyclers Shooed . | . . . . Parts Field Recycled . | . . . . Retrieved Matter . | . . . . Parts Self-Destructed . | . . . . Prevented . | . . . . Kills | -11 -10 -9 -9 ------- Run | Yrd Mat Mat Sto Combat Hostiles Destroyed 6 | . . 3 3 Guns 4 | . . 3 1 AOE 2 | . . . 2 Classes Destroyed 4 | . . 2 2 Watcher 1 | . . . 1 Grunt 4 | . . 2 2 Brawler 1 | . . . 1 Sentry 1 | . . 1 . Best Kill Streak 2 | . . 2 2 Combat Bots Only 2 | . . 2 2 Max Kills in Single Turn 2 | . . 1 2 Gunslinging . | . . . . Exploded 2 | . . . 2 Melee . | . . . . Uniques/NPCs Destroyed . | . . . . Combat | -11 -10 -9 -9 -------- Run | Yrd Mat Mat Sto Hostile Shots Fired 132 | . . 9 123 Missed 45 | . . 2 43 Damage Taken 1258 | . . 90 1168 Core 407 | . . 14 393 Absorbed by Shields . | . . . . Redirected to Shielding 14 | . . . 14 Core Remaining (%) 100 | 100 100 . . Volleys Fired 17 | . . 7 10 Largest 2 | . . 2 2 Hottest 50 | . . 50 50 Shots Fired 31 | . . 14 17 Gun 28 | . . 14 14 Cannon . | . . . . Launcher 3 | . . . 3 Special . | . . . . Kinetic 28 | . . 14 14 Thermal . | . . . . Explosive 3 | . . . 3 Electromagnetic . | . . . . Robot Hit Streak 4 | . . 3 4 Robot Miss Streak 2 | . . 2 2 Penetration Max . | . . . . Secondary Targets . | . . . . Shots Hit Robots 16 | . . 7 9 Core Hits 16 | . . 5 11 Critical Kills . | . . . . Critical Parts Destroyed . | . . . . Critical Strikes . | . . . . Melee Attacks . | . . . . Impact . | . . . . Slashing . | . . . . Piercing . | . . . . Sneak Attacks . | . . . . Combat Hostiles . | . . . . Follow-up Attacks . | . . . . Damage Inflicted 650 | . . 117 533 Guns 276 | . . 117 159 Cannons . | . . . . Explosions 374 | . . . 374 Melee . | . . . . Ramming . | . . . . Kinetic 276 | . . 117 159 Thermal . | . . . . Explosive 374 | . . . 374 Electromagnetic . | . . . . Impact . | . . . . Slashing . | . . . . Piercing . | . . . . Highest Corruption 1 | . . . 1 Average Corruption 1 | . . . 1 Corruption Purged . | . . . . Corruption Blocked . | . . . . Effects 2 | . . . 2 Matter Fused 1 | . . . 1 Data Loss (major) 1 | . . . 1 Overload Shots . | . . . . Overflow Damage . | . . . . Projectiles . | . . . . Explosions . | . . . . Melee . | . . . . Knockbacks . | . . . . Impact . | . . . . Kinetic . | . . . . Secondary . | . . . . Self-Inflicted Damage . | . . . . Shots . | . . . . Rammed . | . . . . Targets Rammed . | . . . . Kicked . | . . . . Crushed . | . . . . Highest Temperature 34 | . . 29 34 Average Temperature 14 | . . 14 15 Received Heat Transfer 453 | . . 45 408 Siege Activations . | . . . . Robots Corrupted . | . . . . Combat Hostiles . | . . . . Parts Fried . | . . . . Impact Corruptions . | . . . . Robots Melted . | . . . . Combat Hostiles . | . . . . Parts Melted . | . . . . Heat Transferred . | . . . . Parts Sabotaged . | . . . . Parts Stolen . | . . . . Parts Stripped . | . . . . Power Chain Reactions . | . . . . Alert | -11 -10 -9 -9 ------- Run | Yrd Mat Mat Sto Peak Influence 134 | . 20 134 108 Initial 56 | . . 8 56 Average 58 | . 2 81 75 Maximum Alert Level . | . . . . Low Security (%) 100 | 100 100 100 100 Level 1 . | . . . . Level 2 . | . . . . Level 3 . | . . . . Level 4 . | . . . . Level 5 . | . . . . High Security . | . . . . Max Security . | . . . . Squads Dispatched 4 | . . 1 3 Investigation 1 | . . . 1 Extermination . | . . . . Reinforcement 3 | . . 1 2 Assault . | . . . . Garrison . | . . . . Intercept . | . . . . Searches Triggered . | . . . . Construction Impeded . | . . . . Haulers Reinforced . | . . . . Active Scanning Responses . | . . . . Cargo Convoy Interrupts . | . . . . Stealth | -11 -10 -9 -9 --------- Run | Yrd Mat Mat Sto Distress Signals . | . . . . Communications Jammed . | . . . . Distress Signals . | . . . . Times Spotted 19 | . 1 3 15 Peak Tracking Total 10 | . 2 1 10 Tactical Retreats 1 | . . . 1 Traps | -11 -10 -9 -9 ------- Run | Yrd Mat Mat Sto Traps Triggered 2 | . . . 2 Indirectly . | . . . . Trap Hack Attempts . | . . . . Triggered . | . . . . Disarmed . | . . . . Reprogrammed . | . . . . Reused . | . . . . Traps Extracted . | . . . . Installed . | . . . . Triggered . | . . . . Machines | -11 -10 -9 -9 ---------- Run | Yrd Mat Mat Sto Machines Disabled 1 | . . 1 . Max in Single Turn 1 | . . 1 . Machines Repaired . | . . . . Machines Dismantled . | . . . . Machines Sabotaged . | . . . . Overloaded Fab Kills . | . . . . Hacking | -11 -10 -9 -9 --------- Run | Yrd Mat Mat Sto Machines Accessed 5 | . 2 . 3 Terminals 4 | . 2 . 2 Fabricators . | . . . . Repair Stations . | . . . . Recycling Units 1 | . . . 1 Scanalyzers . | . . . . Garrison Access . | . . . . Total Hacks 5 | . 2 . 3 Successful 5 | . 2 . 3 Failed . | . . . . Catastrophic . | . . . . Database Lockouts . | . . . . Manual . | . . . . Terminals 4 | . 2 . 2 Fabricators . | . . . . Repair Stations . | . . . . Recycling Units 1 | . . . 1 Scanalyzers . | . . . . Garrison Access . | . . . . Terminal Hacks 4 | . 2 . 2 Open Door 1 | . . . 1 Locate Traps 1 | . . . 1 Maintenance Status 1 | . 1 . . Zone Layout 1 | . 1 . . Fabricator Hacks . | . . . . Repair Station Hacks . | . . . . Recycling Unit Hacks 1 | . . . 1 Report Inventory 1 | . . . 1 Scanalyzer . | . . . . Garrison Access Hacks . | . . . . Unauthorized Hacks . | . . . . Terminals . | . . . . Fabricators . | . . . . Repair Stations . | . . . . Recycling Units . | . . . . Scanalyzers . | . . . . Garrison Access . | . . . . Data Cores Recovered . | . . . . Used . | . . . . Hacking Detections 2 | . 1 . 1 Full Trace Events . | . . . . Feedback Events . | . . . . Feedback Blocked . | . . . . Robot Schematics Acquired . | . . . . Robots Built . | . . . . Authchips . | . . . . Time . | . . . . Total Robot Build Rating . | . . . . Part Schematics Acquired . | . . . . Parts Built . | . . . . Authchips . | . . . . Time . | . . . . Total Part Build Rating . | . . . . Parts Repaired . | . . . . Time . | . . . . Parts Recycled . | . . . . Recycled Matter . | . . . . Retrieved Matter . | . . . . Retrieved Components . | . . . . Parts Scanalyzed . | . . . . Part Schematics Acquired . | . . . . Parts Damaged . | . . . . Bothacking | -11 -10 -9 -9 ------------ Run | Yrd Mat Mat Sto Used RIF Installer . | . . . . Robots Hacked . | . . . . Non-combat . | . . . . Combat . | . . . . Robot Hacks Applied . | . . . . Relay Couplers Released . | . . . . Fabnet Peak Effective % . | . . . . Robots Rewired . | . . . . Allies Hacked . | . . . . Hacks Repelled . | . . . . Allies | -11 -10 -9 -9 -------- Run | Yrd Mat Mat Sto Total Allies . | . . . . Largest Group . | . . . . Highest-Rated Group . | . . . . Highest-Rated Ally . | . . . . Total Orders . | . . . . Ally Attacks . | . . . . Total Damage . | . . . . Kills . | . . . . Allies Corrupted . | . . . . Allies Melted . | . . . . Intel | -11 -10 -9 -9 ------- Run | Yrd Mat Mat Sto Robot Analysis Total . | . . . . Derelict Logs Recovered . | . . . . Drone Launches 2 | . . . 2 Drone Recoveries 2 | . . . 2 Exploration | -11 -10 -9 -9 ------------- Run | Yrd Mat Mat Sto Turns Passed 724 | 41 134 120 429 Spaces Moved 492 | 33 145 67 247 Core 60 | 8 . . 52 Treads 232 | . . 37 195 Legs . | . . . . Wheels 200 | 25 145 30 . Hover . | . . . . Flight . | . . . . Fastest Speed 50 | 50 90 90 100 Average Speed 126 | 80 90 128 153 Slowest Speed 240 | 90 90 160 240 Overloaded Moves . | . . . . Propulsion Burnouts . | . . . . Robots Hopped . | . . . . Cave-ins Triggered . | . . . . Exploration Rate (%) 23 | 3 27 9 56 Regions Visited 3 Branch Regions 1 Pre-discovered Areas . | . . . . Known Exits Taken . | . . . . Unknown Exits Taken 3 | 1 1 1 . Scrap Searched . | . . . . Spaces Dug . | . . . . Terrain Destroyed 16 | . . . 16 Melee . | . . . . Projectile . | . . . . AOE 16 | . . . 16 Terrain Rammed . | . . . . Walls Destroyed . | . . . . Machines Disabled . | . . . . Actions | -11 -10 -9 -9 --------- Run | Yrd Mat Mat Sto Total 571 | 47 148 92 284 Wait 23 | . . . 23 Move 489 | 32 144 66 247 Hop . | . . . . Pick Up 21 | 8 3 10 . Fast Attach 1 | . . . 1 Attach 14 | 6 1 5 2 Detach 1 | . . . 1 Swap . | . . . . Drop 5 | 1 . 4 . Fire 17 | . . 7 10 Melee . | . . . . Ram . | . . . . Kick . | . . . . Crush . | . . . . Escape Stasis . | . . . . Rewire . | . . . . Trap . | . . . . Miscellaneous . | . . . . Route ------- -11/Scrapyard -10/Materials (discovered 2 exits: [*Mat] / [*Min]) -9/Materials -9/Storage History --------- Turn | Location | Event 21 | -11/Scrapyard | Discovered new exit (range 16) 42 | -11/Scrapyard | Entered Materials 118 | -10/Materials | Discovered new exit (range 7) 173 | -10/Materials | Discovered new exit (range 3) 176 | -10/Materials | Entered another Materials area 176 | -9/Materials | Evolved 2 slots: Utility x2 244 | -9/Materials | Discovered new exit (range 9) 296 | -9/Materials | Entered Storage 317 | -9/Storage | Build established: Mutant 684 | -9/Storage | Core integrity fell below 50% 689 | -9/Storage | Lost 4 parts (1p1n1u1w) 716 | -9/Storage | Core integrity fell below 20% 725 | -9/Storage | Destroyed by G-34 Mercenary with Small Laser Last Messages --------------- R-06 Scavenger collects Imp. Treads. System corrupted: Matter fused (-8). Drone Bay destroyed. R-06 Scavenger collects Lgt. Armor Plating. Ion Engine destroyed. Imp. Treads destroyed. Minigun destroyed. ALERT: Hostiles spotted, dispatching reinforcements to Terminal S004. Minigun destroyed. M-13 Machinist repairs Imp. Aluminum Leg. Triggered Alarm Trap. An alarm sounds. ALERT: Alarm triggered, dispatching investigation squad. System corrupted: Substantial component data lost. G-34 Mercenary destroyed. B-36 Bruiser destroyed. Grenade Launcher severed. Map ----- +----------------------------------------------------+ | """ #????????????????# #???# ????# #???? | | #????????????????# #############?## ##??? | | ########????????????????# # ### #??? | | ????????????????????????# # / T #??? | | ???????????????????????## # ### #??? | | ???????????????????????+ # #?##+##??? | | ????????????????????????# # #????????? | | ????????????????????????# / #????????? | | ????????????????????????# # #????????? | | ???????????????????????## #############????????? | | ???????????????????????# #???????????????????? | | ???????????????????????/ #???????????????????? | | ???????????????????????# T #???????????????????? | | ???????????????????????# #####???????????????? | | ?????????????????######## ### #???????????????? | | ?????????????????# Y ## #???????????????? | | ?????????????????# m # #???????????????? | | ?????????????????# [!! #???????????????? | | ?????????????????# [!! #???????????????? | | ?????????????????# ?? #???????????????? | | ????????????????# ????? g% #???????????????? | | ??????????????????????? [ +???????????????? | | ???????????????????????? % #??##???????????? | | ???????????????????????? Yg ###T#"??????????? | | ????????????????????????# g "??????????? | | ????????????????????????#@#### "??????????? | | ????????????????????#####l######+####"??????????? | | ????????????????????# #????????????? | | ????????????????????# ##????????????? | | ????????????????????# """"" """"" #?????????????? | | ????????????????????# """"" """"" #?????????????? | | ????????????????????# """"" """"" #?????????????? | | ????????????????????# #?????????????? | | ????????????????????#?#############?????????????? | | | | | | | | | | | | | | | | | | | | | | | | | | | | | | | | | +----------------------------------------------------+ Best States ------------- Heat Dissipation 28 Energy Generation 10 Energy Capacity 250 Matter Stores 238 Matter Capacity 300 Sight Range 16 Terrain Scan Density 10 Armor Coverage 150 Power Shielding 33 Propulsion Shielding 33 Evasion (%) 50 Recoil Reduction 2 Item Schematics ----------------- None Robot Schematics ------------------ None Fabricated ------------ Nothing Alien Tech Used ----------------- None Achievements -------------- None Challenges ------------ None Game ------ Seed RelayCryofiberWeb Manual? 0 Play Time 00:15:06 Cumulative 13.7 hours Start 2024.04.17 @ 16:00:34 End 2024.04.17 @ 17:26:19 Sessions 1 Manual Loads 0 Difficulty Rogue Special Mode None Game No. 22 Rogue 22 Adventurer 0 Explorer 0 Win Type - Total 0 Types 0/0/0/0/0/0/0/0/0 Lore% 8 Gallery% 15 Achievement% 13 Wizard Run 0 Options --------- Layout 1 ASCII 0 Keyboard 0 Movement Mouse Keybinds 0 Fullscreen 1 Font 48/Smallcaps Map View 50x35 Zoom Use 0% Tactical HUD 0 Map Filters NONE Filters NONE Steam 1 RUN: 6b101872-f72a-4e11-8f70-f1421628d2c9